bitfinex/quotes_ETHUSD_20251031
["timestamp","ask_amount","ask_price","bid_price","bid_amount"]
[1761923436187,0.001,3884.6,3884.4,2.5743767]
[1761923436387,0.001,3884.6,3884.1,2.57474374]
[1761923436609,0.001,3884.6,3884.1,0.0002]
[1761923436901,3.03103272,3884.2,3884.1,0.0002]
[1761923437264,3.51123272,3884.2,3884.1,0.0002]
[1761923437700,0.4565,3884.2,3884.1,0.0002]
[1761923437873,3.51123272,3884.2,3884.1,0.0002]
[1761923438074,4.52530235,3884.2,3884.1,0.0002]
[1761923438286,5.92498235,3884.2,3884.1,0.0002]
[1761923438687,6.02819603,3884.2,3884.1,0.0002]
[1761923440218,8.18429503,3884.2,3884.1,0.0002]
[1761923440830,3.14629971,3883.2,3883.1,1e-08]
[1761923441037,5.05960968,3883.2,3883.1,1e-08]
[1761923441335,5.53980968,3883.2,3883.1,1e-08]
[1761923441518,19.81008368,3883.2,3883.1,1e-08]
[1761923441718,7.54724068,3883.2,3883.1,1e-08]
[1761923441918,14.26955068,3883.2,3883.1,1e-08]
[1761923442231,2.98136304,3882.2,3881.1,0.005]
[1761923442431,4.82414304,3882.2,3881.1,0.005]
[1761923442609,5.30434304,3882.2,3881.1,0.005]
[1761923443009,5.30434304,3882.2,3882.1,1e-08]
[1761923443520,22.82549204,3882.2,3882.1,1e-08]
[1761923443698,9.13077338,3882.2,3882.1,1e-08]
[1761923443897,9.12954238,3882.2,3882.1,1e-08]
[1761923445532,5.72364238,3882.2,3882.1,1e-08]
[1761923445734,10.67444504,3882.2,3882.1,1e-08]
[1761923446042,5.40762868,3882.2,3882.1,1e-08]
[1761923447248,4.89883904,3882.2,3882.1,1e-08]
[1761923448124,5.30354304,3882.2,3882.1,1e-08]
[1761923448838,3.90386304,3882.2,3882.1,1e-08]
[1761923449040,5.98173288,3882.2,3882.1,1e-08]
[1761923449943,5.30354304,3882.2,3882.1,1e-08]
[1761923450167,3.90386304,3882.2,3882.1,1e-08]
[1761923450329,3.49835904,3882.2,3882.1,1e-08]
[1761923450659,3.90386304,3882.2,3882.1,1e-08]
[1761923451069,0.199,3882.3,3882.1,1e-08]
[1761923451241,2.76375356,3882.6,3882.1,1e-08]
[1761923451437,0.1881,3882.6,3882.1,1e-08]
[1761923451650,3.07065904,3882.2,3882.1,1e-08]
[1761923451860,0.4948,3882.2,3882.1,1e-08]
[1761923452348,3.07065904,3882.2,3882.1,1e-08]
[1761923452723,3.54675904,3882.2,3882.1,1e-08]
[1761923452922,3.95226304,3882.2,3882.1,1e-08]
[1761923453169,4.6050622,3882.2,3882.1,1e-08]
[1761923453538,6.0047422,3882.2,3882.1,1e-08]
[1761923455076,14.2186742,3882.2,3882.1,1e-08]
[1761923455286,11.5421312,3882.2,3882.1,1e-08]
[1761923455455,6.0047422,3882.2,3882.1,1e-08]
[1761923456977,3.95226304,3882.2,3882.1,1e-08]
[1761923457274,10.32226304,3882.2,3882.1,1e-08]
[1761923458194,11.72194304,3882.2,3882.1,1e-08]
[1761923458797,3.97553904,3882.2,3882.1,1e-08]
[1761923459088,1.39968,3882.4,3882.1,0.00200001]
[1761923459257,2.57566483,3882.5,3882.1,0.00200001]
[1761923459457,0.4761,3882.9,3882.1,0.16300001]
[1761923459458,0.001,3882.2,3882.1,0.16300001]
[1761923459859,0.001,3882.2,3882.1,1.08010001]
[1761923460349,0.001,3882.2,3882.1,1.44570801]
[1761923461052,0.001,3882.2,3882.1,0.98330801]
[1761923461468,0.001,3882.2,3882.1,4.02163341]
[1761923462064,0.001,3882.2,3882.1,1.44570801]
[1761923462265,0.001,3882.2,3882.1,4.02163341]
[1761923463179,0.001,3882.2,3882.1,4.04739266]
[1761923463378,0.001,3882.2,3882.1,4.17539266]
[1761923464313,0.001,3882.2,3882.1,4.14963341]
[1761923464479,0.001,3882.2,3882.1,4.17539266]
[1761923464877,0.001,3882.2,3882.1,10.58589876]
[1761923465101,0.001,3882.2,3882.1,10.56013951]
[1761923465807,0.001,3884.2,3883.9,2.57467456]
[1761923466011,0.001,3884.2,3882.1,7.98421411]
[1761923466012,0.001,3884.2,3884.1,0.1762]
[1761923466212,0.001,3884.2,3884.1,0.6309]
[1761923466732,0.001,3884.2,3884.1,3.205499]
[1761923467137,0.001,3884.2,3884.1,4.26611607]
[1761923467337,0.001,3884.2,3884.1,4.39411607]
[1761923468518,0.001,3884.2,3884.1,4.41986206]
[1761923469242,0.001,3884.2,3884.1,4.39411607]
[1761923469538,0.001,3884.2,3884.1,4.41986206]
[1761923470506,0.001,3884.2,3884.1,0.4547]
[1761923470706,0.001,3884.2,3883.7,0.1762]
[1761923470902,0.001,3884.2,3881.9,2.57604418]
[1761923471128,0.001,3884.2,3883.4,2.57502052]
[1761923471343,2.57553707,3884.2,3883.4,2.57502052]
[1761923471708,2.57461925,3884.1,3883.3,2.57511348]
[1761923471930,2.57553893,3884.2,3883.5,2.57499009]
[1761923472143,2.57553893,3884.2,3883.4,2.57500597]
[1761923472315,2.57553893,3884.2,3883.5,2.5749851]
[1761923472516,0.001,3884.2,3883.5,2.5749851]
[1761923473110,0.001,3884.2,3884.1,0.6309]
[1761923473542,0.0002,3884.2,3884.1,0.65664599]
[1761923473846,0.0002,3884.2,3883.7,0.1762]
[1761923474047,0.0002,3884.2,3883.8,2.57478721]
[1761923474208,0.0002,3884.2,3883.7,0.1762]
[1761923474543,0.0002,3884.2,3883.7,2.57485508]
[1761923474717,0.0002,3884.2,3883.7,0.53518563]
[1761923475048,0.6829,3883.8,3882.4,0.4624]
[1761923475250,0.6829,3883.8,3881.1,0.005]
[1761923475251,0.1904,3883.6,3882.1,0.16300001]
[1761923475451,0.1904,3883.6,3882.3,0.1762]
[1761923475615,2.57531446,3883.1,3882.3,2.75198216]
[1761923475808,0.4569,3883.5,3882.4,0.54908967]
[1761923476012,0.4569,3883.5,3882.5,0.0257566]
[1761923476307,0.1881,3883.8,3882.4,0.48785726]
[1761923476655,0.1881,3883.8,3882.5,2.57560128]
[1761923476959,0.6495,3882.5,3882.1,0.00200001]
[1761923477123,0.1846,3883.0,3882.1,0.00200001]
[1761923477454,2.75994576,3883.0,3882.1,0.17820001]
[1761923477660,1.805184,3883.6,3882.2,0.02575859]
[1761923477661,0.862404,3883.6,3882.2,0.02575859]
[1761923477809,0.405504,3883.5,3882.6,2.57558424]
[1761923478016,0.001,3883.6,3882.1,0.64030001]
[1761923478336,0.4569,3883.5,3882.6,2.57554624]
[1761923478535,0.4569,3883.5,3882.7,2.57548169]
[1761923478536,2.57505875,3883.5,3882.7,2.57548169]
[1761923478733,2.57505875,3883.5,3882.2,0.48785859]
[1761923478734,0.97199454,3883.4,3882.2,0.02575859]
[1761923478936,2.57539467,3882.9,3882.1,0.00200001]
[1761923479139,0.862404,3883.3,3882.1,0.00200001]
[1761923479328,2.57552733,3882.7,3882.1,0.00200001]
[1761923479715,0.405504,3883.7,3882.1,0.17820001]
[1761923479915,2.57514278,3883.3,3882.5,2.57564692]
[1761923480120,2.57520857,3883.2,3882.5,2.57561315]
[1761923480337,0.1856,3884.0,3882.6,0.02575593]
[1761923480543,0.1856,3884.0,3882.9,2.57534654]
[1761923480743,0.1856,3884.0,3883.2,2.5751908]
[1761923480941,0.1856,3884.0,3883.1,0.1762]
[1761923481273,2.57526785,3883.1,3882.1,0.17820001]
[1761923481438,0.4649,3883.2,3882.1,2.754067]
[1761923481439,2.57538033,3883.0,3882.1,2.754067]
[1761923481639,3.04010648,3883.2,3882.1,0.72401027]
[1761923481640,0.405504,3883.1,3882.1,0.72401027]
[1761923481839,2.57547678,3882.8,3882.1,2.75411271]
[1761923482074,2.76000752,3882.9,3882.2,2.5758492]
[1761923482675,0.1846,3882.9,3882.1,0.00200001]
[1761923483267,2.7600458,3882.9,3882.1,2.57790633]
[1761923483576,0.1846,3882.9,3882.3,2.5757886]
[1761923484028,2.76004974,3882.9,3882.2,2.57584233]
[1761923484278,2.76004974,3882.9,3882.1,2.754117]
[1761923484780,0.1846,3882.9,3882.1,0.17820001]
[1761923485089,0.6648,3882.9,3882.1,0.00200001]
[1761923485442,0.6648,3882.9,3882.2,2.57585904]
[1761923485642,0.6648,3882.9,3882.3,2.57578913]
[1761923485843,0.6648,3882.9,3882.1,2.75407998]
[1761923486044,2.57552916,3882.7,3882.1,0.00200001]
[1761923486265,0.6648,3882.9,3882.1,2.57786688]
[1761923486574,0.4802,3882.8,3882.1,0.00200001]
[1761923486750,2.57560119,3882.6,3882.1,0.00200001]
[1761923486952,2.89964131,3882.6,3882.1,0.00200001]
[1761923487158,0.4802,3882.5,3882.1,0.00200001]
[1761923487540,0.1846,3882.9,3882.2,2.57585553]
[1761923487768,0.1846,3882.9,3882.1,0.17820001]
[1761923488179,6.371,3883.6,3882.1,0.17820001]
[1761923488180,0.001,3883.6,3882.2,0.49235859]
[1761923488492,0.001,3883.6,3882.3,6.73515236]
[1761923488645,0.001,3883.6,3883.1,2.57526064]
[1761923488844,0.4812,3883.6,3883.2,2.57518883]
[1761923489050,0.001,3883.6,3883.4,2.57505838]
[1761923489377,0.001,3883.6,3883.1,2.57521044]
[1761923489576,0.001,3883.6,3882.6,0.4666]
[1761923489777,0.78680679,3883.6,3882.1,0.17820001]
[1761923490091,2.57508392,3883.4,3882.1,0.17820001]
[1761923490392,2.57515722,3883.3,3882.2,2.57579501]
[1761923490579,2.57515722,3883.3,3882.1,0.17820001]
[1761923490747,2.5752056,3883.2,3882.5,2.57560401]
[1761923491088,2.57538114,3883.0,3882.1,0.17820001]
[1761923491290,2.57535182,3883.0,3882.1,0.17820001]
[1761923491454,0.1941,3882.9,3882.3,2.57578049]
[1761923491655,0.001,3883.6,3882.3,2.5757927]
[1761923491858,0.001,3883.6,3883.0,2.57528511]
[1761923492263,0.001,3883.6,3883.0,2.5752778]
[1761923492459,0.001,3883.6,3882.4,0.49235726]
[1761923492660,0.001,3883.6,3883.3,2.5751193]
[1761923492873,0.001,3883.6,3882.4,0.49235726]
[1761923493074,0.001,3883.6,3883.3,2.57511684]
[1761923493474,0.001,3883.6,3882.7,0.02575527]
[1761923493679,0.001,3883.6,3883.3,2.5750744]
[1761923493884,0.001,3883.6,3883.2,2.5751939]
[1761923494086,0.001,3883.6,3882.7,0.49235527]
[1761923494286,0.001,3883.6,3882.8,2.91287094]
[1761923494475,0.001,3883.6,3882.9,0.02575394]
[1761923494686,0.001,3883.6,3883.4,2.57504366]
[1761923495198,0.001,3883.6,3883.1,0.02575262]
[1761923495412,0.001,3883.6,3882.9,0.02575394]
[1761923495618,0.001,3883.6,3883.2,2.57516289]
[1761923495805,0.001,3883.6,3883.0,2.57532835]
[1761923496310,0.001,3883.6,3883.1,2.57525767]
[1761923496514,0.001,3883.6,3883.0,2.57530818]
[1761923496816,0.001,3883.6,3882.6,0.128]
[1761923497500,0.001,3883.6,3883.2,2.57518638]
[1761923498114,0.001,3883.6,3883.3,0.1762]
[1761923498314,0.001,3883.6,3883.5,3.06259678]
[1761923498616,0.0002,3883.6,3883.5,3.06259678]
[1761923498992,0.0002,3883.6,3883.0,2.75146748]
[1761923499191,0.0002,3883.6,3883.0,2.75151747]
[1761923499425,0.0002,3883.6,3883.4,2.57502732]
[1761923499604,0.0002,3883.6,3883.0,0.46415175]
[1761923499815,0.0002,3883.6,3883.0,0.1762]
[1761923500126,0.0002,3883.6,3883.5,2.57499678]
[1761923500280,0.4752,3883.6,3883.0,0.1762]
[1761923500486,0.19,3883.5,3883.1,2.57521262]
[1761923500700,0.19,3883.5,3883.4,2.57506308]
[1761923500931,0.19,3883.5,3883.4,3.06266308]
[1761923501084,0.19,3883.5,3883.3,2.57512003]
[1761923501284,0.19,3883.5,3882.7,0.128]
[1761923501503,0.1902,3883.6,3883.0,2.57529781]
[1761923501678,0.1902,3883.6,3882.8,0.4666]
[1761923501884,0.1902,3883.6,3883.2,2.57515296]
[1761923502123,0.1902,3883.6,3883.1,2.57524112]
[1761923502329,0.6704,3883.6,3883.2,2.57519407]
[1761923502843,0.53412998,3883.6,3882.9,2.57534099]
[1761923503009,0.4802,3883.5,3882.4,0.13]
[1761923503209,0.4802,3883.5,3882.9,2.57539123]
[1761923503609,3.05520873,3883.5,3882.7,2.57550573]
[1761923503810,3.05520873,3883.5,3882.9,2.57539295]
[1761923504114,3.05520873,3883.5,3882.4,0.002]
[1761923504115,0.4802,3883.4,3882.4,0.002]
[1761923504312,0.3274,3882.5,3882.4,0.002]
[1761923504947,0.8076,3882.5,3882.4,0.002]
[1761923505846,0.3274,3882.5,3882.4,0.002]
[1761923506032,0.4675,3882.9,3882.4,0.002]
[1761923506232,3.62411784,3882.9,3882.4,0.002]
[1761923506434,0.4579,3882.5,3882.4,0.002]
[1761923507027,0.19,3883.3,3882.4,0.002]
[1761923507028,0.1995,3882.9,3882.4,0.002]
[1761923507548,0.4579,3882.5,3882.4,0.002]
[1761923507852,0.9254,3882.5,3882.4,0.002]
[1761923508049,3.69106001,3882.5,3882.4,0.002]
[1761923508350,0.19,3882.5,3882.4,0.002]
[1761923508649,1.1154,3882.5,3882.4,0.002]
[1761923509216,0.6479,3882.5,3882.4,0.002]
[1761923509418,0.6479,3882.5,3882.1,0.00200001]
[1761923509419,0.97984107,3882.5,3880.6,0.002]
[1761923509657,0.405504,3882.0,3880.6,0.002]
[1761923509817,3.13732672,3881.2,3880.6,0.002]
[1761923510029,4.72700672,3881.2,3880.6,0.002]
[1761923510217,5.19450672,3881.2,3880.6,0.002]
[1761923510444,2.57685469,3880.7,3880.6,0.002]
[1761923510682,3.42925869,3880.7,3880.6,0.002]
[1761923510861,1.319904,3880.7,3880.6,0.002]
[1761923511060,3.89675869,3880.7,3880.6,0.002]
[1761923511262,1.319904,3880.7,3880.6,0.002]
[1761923511469,0.6369,3880.7,3880.6,0.002]
[1761923511648,0.19,3880.7,3880.6,0.002]
[1761923512450,0.19,3880.7,3880.6,2.57892109]
[1761923513181,0.19,3880.7,3880.6,0.002]
[1761923513387,0.6479,3880.7,3880.6,0.002]
[1761923514119,1.520904,3880.7,3880.6,0.002]
[1761923514289,4.24984909,3880.7,3880.6,0.002]
[1761923514468,1.2674904,3880.7,3880.6,0.002]
[1761923514795,0.7999904,3880.7,3880.6,0.002]
[1761923514950,0.6479,3880.7,3880.6,0.002]
[1761923515151,1.1154,3880.7,3880.6,0.002]
[1761923515403,3.69225469,3880.7,3880.6,0.002]
[1761923515949,4.09775869,3880.7,3880.6,0.002]
[1761923516184,1.520904,3880.7,3880.6,0.002]
[1761923516449,1.2674904,3880.7,3880.6,0.002]
[1761923516665,0.00555798,3880.6,3880.2,0.1706]
[1761923516862,0.19,3880.5,3880.4,2.57705391]
[1761923517263,0.19,3880.5,3880.4,3.52245391]
[1761923517586,0.00555798,3880.6,3880.5,2.5769875]
[1761923517587,0.19555798,3880.6,3880.5,2.5769875]
[1761923518019,0.19555798,3880.6,3880.5,3.0446875]
[1761923518594,0.19555798,3880.6,3880.5,3.5223875]
[1761923518997,0.19555798,3880.6,3880.5,4.15197383]
[1761923520623,0.19555798,3880.6,3880.4,0.02577053]
[1761923520824,0.19555798,3880.6,3880.2,0.002]
[1761923521198,0.19555798,3880.6,3880.3,2.57712032]
[1761923521398,0.19555798,3880.6,3880.2,2.57918427]
[1761923521614,0.19555798,3880.6,3880.5,3.0446875]
[1761923521802,0.19555798,3880.6,3880.5,3.68060815]
[1761923521996,0.19555798,3880.6,3880.5,4.15830815]
[1761923523038,0.001,3881.2,3881.1,2.57658911]
[1761923523207,0.001,3881.2,3881.1,3.21288911]
[1761923523412,0.001,3881.2,3881.1,3.716355]
[1761923523713,0.001,3881.2,3881.1,4.34565808]
[1761923523910,0.0002,3881.2,3881.1,4.34565808]
[1761923524132,0.0002,3881.2,3881.1,4.47445808]
[1761923525447,0.0002,3881.2,3881.1,4.44869219]
[1761923525652,0.0002,3881.2,3881.1,4.47445808]
[1761923529846,0.001,3881.6,3881.5,2.57632358]
[1761923530013,0.001,3881.6,3881.5,9.98989737]
[1761923530217,0.001,3881.6,3881.5,10.44183414]
[1761923530405,0.001,3882.0,3881.9,2.57605811]
[1761923530608,0.001,3882.0,3881.9,3.67521869]
[1761923531106,1e-08,3882.7,3882.6,3.04329367]
[1761923531306,1e-08,3882.7,3882.6,3.93514658]
[1761923531540,1e-08,3882.7,3882.6,3.90939065]
[1761923531912,1e-08,3882.7,3882.6,4.41284658]
[1761923532966,1e-08,3882.7,3882.6,4.28484658]
[1761923533174,1e-08,3882.7,3882.6,4.41284658]
[1761923533325,1e-08,3882.7,3882.6,4.38709065]
[1761923533526,1e-08,3882.7,3882.6,3.90939065]
[1761923533940,1e-08,3882.7,3882.6,4.38709065]
[1761923534336,1e-08,3882.7,3882.6,3.90939065]
[1761923534562,0.45790001,3882.7,3882.6,2.57559367]
[1761923534722,0.92540001,3882.7,3882.6,2.57559367]
[1761923535141,0.92540001,3882.7,3881.5,0.51527299]
[1761923535337,0.4543,3881.6,3881.1,0.63130308]
[1761923535544,0.4543,3881.6,3881.1,0.002]
[1761923535746,0.4583,3882.2,3881.9,2.57600114]
[1761923536063,0.4583,3882.2,3881.7,2.57614135]
[1761923536232,0.6033,3881.8,3881.1,0.02776589]
[1761923536429,0.1934,3881.4,3881.1,0.02776589]
[1761923536668,0.149,3881.8,3881.7,2.57619084]
[1761923536838,1.0616,3881.8,3881.7,2.57619084]
[1761923537951,0.6033,3881.8,3881.7,2.57619084]
[1761923538330,0.45830001,3882.7,3881.7,0.51524652]
[1761923538530,0.4583,3882.6,3881.9,2.57599955]
[1761923538768,0.6481,3881.7,3881.6,2.5762344]
[1761923539273,1e-08,3882.7,3882.6,2.57559367]
[1761923539432,1e-08,3882.7,3881.6,0.4751]
[1761923539633,1e-08,3882.7,3882.6,2.57559367]
[1761923540132,0.91260001,3882.7,3882.6,2.57559367]
[1761923541031,1e-08,3882.7,3882.6,2.57559367]
[1761923541849,1e-08,3882.7,3882.6,3.56840012]
[1761923542644,1e-08,3882.7,3882.6,3.09330012]
[1761923543070,1e-08,3882.7,3882.6,2.57559367]
[1761923543071,0.47680001,3882.7,3882.6,2.57559367]
[1761923543970,0.93450001,3882.7,3881.9,2.5760561]
[1761923544196,0.93450001,3882.7,3881.7,0.1762]
[1761923544380,0.93450001,3882.7,3882.6,2.57559367]
[1761923544673,0.93450001,3882.7,3881.7,0.1762]
[1761923544674,0.1385,3881.8,3881.7,2.57619084]
[1761923545052,0.5962,3881.8,3881.1,0.1308]
[1761923545278,0.4768,3881.6,3881.1,0.1308]
[1761923545435,0.183,3881.9,3881.2,2.74512272]
[1761923545778,0.183,3881.9,3881.4,2.57638996]
[1761923545986,0.183,3881.9,3881.7,2.57617389]
[1761923546272,0.6407,3881.9,3881.7,2.57617389]
[1761923546472,0.4768,3881.8,3881.7,2.57617389]
[1761923546882,0.4577,3882.4,3881.9,2.57604587]
[1761923547378,0.4768,3882.0,3881.6,2.57619432]
[1761923547578,0.4768,3882.0,3881.3,0.28759227]
[1761923547887,0.1492,3881.9,3881.7,2.57618096]
[1761923548103,0.1492,3881.9,3881.3,0.28759227]
[1761923548287,0.1492,3881.9,3881.8,2.57612447]
[1761923548466,0.626,3881.9,3881.5,2.57631818]
[1761923548662,1.0837,3881.9,3881.2,0.02576522]
[1761923548879,0.626,3881.9,3881.7,2.57617545]
[1761923549081,0.6252,3881.9,3881.6,2.57624635]
[1761923549366,0.6252,3881.9,3881.5,2.57632358]
[1761923549562,0.6252,3881.9,3881.7,2.57614576]
[1761923549962,0.6252,3881.9,3881.6,2.57624062]
[1761923550163,0.6252,3881.9,3881.6,2.57620597]
[1761923550399,0.1826,3881.7,3881.1,0.19636589]
[1761923550600,0.1826,3881.7,3881.6,2.57625721]
[1761923551062,0.4577,3882.4,3881.9,2.57599411]
[1761923551264,0.45870001,3882.7,3881.6,6.27603757]
[1761923551465,0.45870001,3882.7,3881.7,0.88524275]
[1761923551692,3.03423759,3882.7,3882.0,2.57598548]
[1761923551896,0.45870001,3882.7,3882.1,2.57592419]
[1761923552099,0.4577,3882.6,3882.1,2.57592419]
[1761923552301,0.4768,3882.2,3881.3,0.002]
[1761923552608,0.4577,3882.6,3881.9,2.57605811]
[1761923552609,0.1476,3882.0,3881.9,2.57605811]
[1761923553199,0.6053,3882.0,3881.3,0.002]
[1761923553412,0.6053,3882.0,3881.9,2.57605811]
[1761923556098,0.6053,3882.0,3881.7,2.5761475]
[1761923556419,0.4577,3882.3,3881.8,2.57612447]
[1761923556627,0.4577,3882.3,3881.4,0.02576389]
[1761923556929,0.4577,3882.3,3881.9,2.57604365]
[1761923557229,0.4577,3882.3,3881.8,2.5761109]
[1761923557393,0.4577,3882.3,3881.9,2.57605382]
[1761923557818,0.4768,3882.0,3881.9,2.57605382]
[1761923558002,0.4768,3882.0,3881.8,2.57609909]
[1761923558319,0.4577,3882.0,3881.9,2.57605786]
[1761923558635,0.4577,3882.3,3881.3,0.02776456]
[1761923558782,0.4577,3882.3,3882.0,2.5759297]
[1761923559130,0.4577,3882.3,3882.0,2.57597244]
[1761923559341,0.4768,3882.1,3881.8,2.57609754]
[1761923559630,0.4577,3882.3,3881.7,2.57614771]
[1761923559928,2.57560684,3882.6,3881.9,2.57601283]
[1761923559929,0.4577,3882.2,3881.9,2.57601283]
[1761923560082,0.4577,3882.2,3881.9,2.57603664]
[1761923560283,0.4768,3882.0,3881.7,2.57615299]
[1761923560516,3.03359624,3882.2,3881.5,2.57627988]
[1761923560720,0.1485,3881.9,3881.6,2.57625149]
[1761923560919,0.1485,3881.9,3881.4,2.5763435]
[1761923561124,0.1485,3881.9,3881.3,2.57841298]
[1761923561125,0.4768,3881.4,3881.3,2.57841298]
[1761923561624,0.9345,3881.4,3881.3,2.57841298]
[1761923562525,0.4577,3881.8,3881.6,2.57625554]
[1761923562818,2.57566964,3882.5,3881.8,2.5760824]
[1761923563115,0.4577,3882.5,3882.0,2.57597232]
[1761923563319,0.4577,3882.4,3882.0,2.57597232]
[1761923563522,0.4768,3882.1,3882.0,2.57597232]
[1761923563718,0.4768,3882.1,3881.9,2.57605027]
[1761923564020,0.9345,3882.1,3881.9,2.57605027]
[1761923564323,0.1485,3882.0,3881.8,2.57611246]
[1761923564511,0.1485,3882.0,3881.3,0.51769937]
[1761923564512,0.4577,3882.0,3881.5,2.57627149]
[1761923564821,0.183,3881.9,3881.7,2.5761409]
[1761923565280,0.474,3881.6,3881.5,2.57632358]
[1761923566110,0.4579,3882.3,3881.8,2.57612447]
[1761923566389,0.4579,3882.3,3881.9,2.57605523]
[1761923566598,0.4579,3882.3,3881.8,2.57608431]
[1761923566799,0.4579,3882.3,3881.9,2.57605733]
[1761923567179,0.474,3882.0,3881.9,2.57605733]
[1761923567717,0.474,3882.0,3881.4,0.02576389]
[1761923567919,0.9319,3882.0,3881.4,0.02576389]
[1761923568098,0.9319,3882.0,3881.9,2.57605811]
[1761923568294,0.474,3882.0,3881.9,2.57605811]
[1761923568505,0.474,3882.0,3881.7,2.57613673]
[1761923568506,0.9319,3882.0,3881.3,0.002]
[1761923568818,0.1535,3881.8,3881.5,2.57631648]
[1761923569118,0.4708,3881.4,3881.3,2.57840198]
[1761923569282,0.4708,3881.4,3881.3,0.002]
[1761923569486,4.21529439,3881.4,3881.3,0.002]
[1761923569822,1.63890443,3881.4,3881.3,0.002]
[1761923570319,3.91059396,3881.4,3881.3,0.002]
[1761923570728,1.334204,3881.4,3881.3,0.002]
[1761923571811,0.4708,3881.4,3881.3,0.002]
[1761923572011,0.9287,3881.4,3881.3,0.002]
[1761923572325,0.4579,3881.8,3881.3,2.57840813]
[1761923572525,0.4579,3881.7,3881.3,0.002]
[1761923572684,0.1804,3881.9,3881.3,0.002]
[1761923572884,0.474,3881.4,3881.3,0.002]
[1761923573326,0.9319,3881.4,3881.3,0.002]
[1761923573496,0.9319,3881.4,3881.3,2.57845634]
[1761923573703,0.474,3881.4,3881.3,2.57845634]
[1761923573886,0.4579,3881.8,3881.3,0.002]
[1761923574090,0.4579,3881.8,3881.5,2.57627722]
[1761923574323,0.474,3881.4,3881.3,0.002]
[1761923574726,0.4571,3881.8,3881.3,0.002]
[1761923574888,0.1804,3881.9,3881.6,2.57619464]
[1761923575094,0.001,3882.3,3881.7,2.57614754]
[1761923575426,2.57679712,3882.3,3881.4,2.57638996]
[1761923575722,1.059904,3881.4,3881.3,0.002]
[1761923576224,1.517804,3881.4,3881.3,0.002]
[1761923577127,1.059904,3881.4,3881.3,0.002]
[1761923577432,1.517804,3881.4,3881.3,0.002]
[1761923577614,5.64565436,3881.4,3881.3,0.002]
[1761923578419,7.19965436,3881.4,3881.3,0.002]
[1761923578813,7.30296267,3881.4,3881.3,0.002]
[1761923579148,2.9821595,3881.0,3880.9,0.002]
[1761923579350,5.62360345,3881.0,3880.9,0.002]
[1761923579658,3.50484795,3881.0,3880.9,0.002]
[1761923579956,3.9108595,3881.0,3880.9,0.002]
[1761923580116,5.3105395,3881.0,3880.9,0.002]
[1761923580817,5.3105395,3881.0,3880.3,0.002]
[1761923580818,2.98255791,3880.4,3880.3,0.002]
[1761923581012,4.85623791,3880.4,3880.3,0.002]
[1761923581217,5.31413791,3880.4,3880.3,0.002]
[1761923581537,6.10324381,3880.4,3880.3,0.002]
[1761923581942,3.1206859,3880.4,3880.3,0.002]
[1761923582254,4.90863391,3880.4,3880.3,0.002]
[1761923582435,2.33158,3880.4,3880.3,0.002]
[1761923582815,4.90863391,3880.4,3880.3,0.002]
[1761923583014,5.31413791,3880.4,3880.3,0.002]
[1761923587141,5.01100432,3880.3,3880.2,1e-08]
[1761923587332,5.98939726,3880.3,3880.2,1e-08]
[1761923587731,4.58971726,3880.3,3880.2,1e-08]
[1761923588128,3.61132432,3880.3,3880.2,1e-08]
[1761923589166,5.01100432,3880.3,3880.2,1e-08]
[1761923589859,5.3498565,3880.3,3880.2,1e-08]
[1761923590623,5.45320005,3880.3,3880.2,1e-08]
[1761923592069,5.01100432,3880.3,3880.2,1e-08]
[1761923592270,5.76980433,3880.3,3880.2,1e-08]
[1761923594165,10.74012433,3880.3,3880.2,1e-08]
[1761923594470,12.13980433,3880.3,3880.2,1e-08]
[1761923597070,11.73430033,3880.3,3880.2,1e-08]
[1761923597757,12.13980433,3880.3,3880.2,1e-08]
[1761923598441,10.28222433,3880.3,3880.2,1e-08]
[1761923598642,8.94712032,3880.3,3880.2,1e-08]
[1761923598847,7.76968,3880.3,3880.2,1e-08]
[1761923599172,10.34680032,3880.3,3880.2,1e-08]
[1761923599328,8.94632032,3880.3,3880.2,1e-08]
[1761923599843,6.3692,3880.3,3880.2,0.66740001]
[1761923600043,6.3692,3880.3,3880.2,1e-08]
[1761923601131,6.774704,3880.3,3880.2,1e-08]
[1761923601641,0.405504,3880.3,3880.2,1e-08]
[1761923602843,2.98262432,3880.3,3880.2,1e-08]
[1761923603766,0.405504,3880.3,3880.2,1e-08]
[1761923603969,3.43452432,3880.3,3880.2,1e-08]
[1761923604848,0.857404,3880.3,3880.2,1e-08]
[1761923605364,4.17563592,3880.3,3880.2,1e-08]
[1761923605570,1.5985156,3880.3,3880.2,1e-08]
[1761923605766,3.43452432,3880.3,3880.2,1e-08]
[1761923605960,3.43552432,3880.3,3880.2,1e-08]
[1761923606160,4.83520432,3880.3,3880.2,1e-08]
[1761923606339,5.28540432,3880.3,3880.2,1e-08]
[1761923608960,6.83940432,3880.3,3880.2,1e-08]
[1761923609150,7.78104524,3880.3,3880.2,1e-08]
[1761923610372,4.82736524,3880.3,3880.2,1e-08]
[1761923610878,6.22704524,3880.3,3880.2,1e-08]
[1761923611536,8.296641,3880.2,3879.9,1e-08]
[1761923611741,4.57310358,3880.0,3879.9,1e-08]
[1761923612187,5.02330358,3880.0,3879.9,1e-08]
[1761923615391,4.16759958,3880.0,3879.9,1e-08]
[1761923615685,3.21811958,3880.0,3879.9,1e-08]
[1761923616067,3.62362358,3880.0,3879.9,1e-08]
[1761923616290,5.78345261,3880.0,3879.9,1e-08]
[1761923618579,38.63745261,3880.0,3879.9,1e-08]
[1761923618779,38.63745261,3880.0,3877.6,0.002]
[1761923618780,5.93730094,3878.8,3877.7,0.1702]
[1761923618983,4.93145312,3878.8,3877.6,0.002]
[1761923619183,5.84609405,3878.8,3877.6,0.002]
[1761923619387,5.94947125,3878.8,3877.6,0.002]
[1761923620196,2.98388683,3878.4,3877.6,0.002]
[1761923620384,3.43578683,3878.4,3877.6,0.002]